bitfinex-derivatives/quotes_SOLF0:USTF0_20241206
["timestamp","ask_amount","ask_price","bid_price","bid_amount"]
[1733488103235,2.13986133,233.66,233.45,10.57521183]
[1733488103526,10.57521183,233.6,233.46,2.02]
[1733488103732,10.57521183,233.57,233.47,4.20688732]
[1733488105128,10.57521183,233.57,233.48,2.02]
[1733488105324,2.13986133,233.66,233.48,6.19643575]
[1733488105529,10.57521183,233.58,233.48,2.02]
[1733488108229,10.57521183,233.61,233.48,2.02]
[1733488108431,10.57521183,233.61,233.49,2.6306]
[1733488110430,10.57521183,233.61,233.48,3.3259]
[1733488112239,10.57521183,233.64,233.48,3.3259]
[1733488113139,1.3394,233.65,233.53,10.57521183]
[1733488113432,4.85106133,233.66,233.54,2.02]
[1733488113639,4.85106133,233.66,233.55,4.20175093]
[1733488114035,10.57521183,233.64,233.54,2.02]
[1733488117540,2.7112,233.66,233.54,2.02]
[1733488119345,10.57521183,233.64,233.54,2.02]
[1733488120844,10.57521183,233.61,233.55,2.02]
[1733488121039,10.57521183,233.61,233.54,2.02]
[1733488121244,10.57521183,233.61,233.46,4.25385453]
[1733488121445,10.57521183,233.61,233.47,2.02]
[1733488121841,10.57521183,233.58,233.47,2.02]
[1733488125248,10.57521183,233.58,233.45,10.57521183]
[1733488125553,10.57521183,233.55,233.46,2.02]
[1733488125960,10.57521183,233.47,233.3,2.2]
[1733488126149,10.57521183,233.44,233.3,2.2]
[1733488126455,10.57521183,233.44,233.29,10.57521183]
[1733488126653,10.57521183,233.44,233.31,2.2]
[1733488127855,10.57521183,233.41,233.32,2.2]
[1733488128954,10.57521183,233.38,233.32,2.2]
[1733488129753,10.57521183,233.38,233.3,2.2]
[1733488132962,1.3445,233.43,233.3,2.2]
[1733488133159,1.3445,233.43,233.31,4.20839831]
[1733488133959,1.3445,233.43,233.3,2.2]
[1733488134160,10.57521183,233.41,233.3,2.2]
[1733488134561,10.57521183,233.41,233.28,10.57521183]
[1733488134766,10.57521183,233.41,233.29,2.2]
[1733488138664,1.2748,233.45,233.29,2.2]
[1733488138966,10.57521183,233.45,233.31,10.57521183]
[1733488141270,10.57521183,233.48,233.34,10.57521183]
[1733488141464,10.57521183,233.48,233.35,2.2]
[1733488144568,10.57521183,233.48,233.36,10.57521183]
[1733488144767,10.57521183,233.51,233.36,10.57521183]
[1733488145270,10.57521183,233.54,233.39,10.57521183]
[1733488145564,10.57521183,233.54,233.4,6.1593]
[1733488146267,2.6895,233.62,233.42,10.57521183]
[1733488146268,10.57521183,233.57,233.42,10.57521183]
[1733488147268,10.57521183,233.57,233.4,10.39602102]
[1733488147465,10.57521183,233.57,233.41,10.57521183]
[1733488148268,10.57521183,233.57,233.44,10.57521183]
[1733488148472,10.57521183,233.6,233.45,2.2]
[1733488149072,10.57521183,233.6,233.47,10.57521183]
[1733488149976,10.57521183,233.6,233.47,14.76283707]
[1733488151072,10.57521183,233.63,233.47,14.76283707]
[1733488151569,3.8371,233.69,233.47,14.76283707]
[1733488151570,10.57521183,233.6,233.47,14.76283707]
[1733488152289,10.57521183,233.57,233.44,10.57521183]
[1733488152490,10.57521183,233.57,233.48,2.2]
[1733488153780,10.57521183,233.6,233.48,2.2]
[1733488154976,10.57521183,233.6,233.48,6.52215625]
[1733488155280,10.57521183,233.6,233.48,2.2]
[1733488156181,3.8371,233.69,233.49,2.18]
[1733488156182,10.57521183,233.54,233.49,2.18]
[1733488156381,10.57521183,233.57,233.5,2.18]
[1733488156682,10.57521183,233.57,233.51,2.18]
[1733488156980,10.57521183,233.6,233.51,2.18]
[1733488158283,10.57521183,233.6,233.51,6.44015007]
[1733488158583,10.57521183,233.6,233.51,2.18]
[1733488159080,10.57521183,233.57,233.51,2.18]
[1733488160485,10.57521183,233.6,233.51,2.18]
[1733488167985,6.0171,233.69,233.51,2.18]
[1733488167986,6.75808463,233.56,233.51,2.18]
[1733488171787,3.8371,233.69,233.52,6.75808463]
[1733488171992,3.8371,233.69,233.54,6.75808463]
[1733488172193,6.75808463,233.64,233.56,6.75808463]
[1733488172386,6.75808463,233.64,233.57,6.48338342]
[1733488172792,6.75808463,233.62,233.57,2.18]
[1733488172992,6.75808463,233.64,233.57,2.18]
[1733488173990,10.55206458,233.68,233.57,2.18]
[1733488178396,10.55206458,233.68,233.57,6.45659996]
[1733488178694,10.55206458,233.68,233.57,2.18]
[1733488179090,10.55206458,233.68,233.57,6.50134605]
[1733488179697,10.55206458,233.68,233.57,2.18]
[1733488193000,10.55206458,233.71,233.57,2.18]
[1733488196001,6.75231875,233.66,233.59,6.75231875]
[1733488197497,3.006,233.74,233.65,6.75231875]
[1733488197801,6.75231875,233.72,233.66,2.14]
[1733488198602,3.006,233.74,233.66,2.14]
[1733488198901,6.75231875,233.73,233.66,2.14]
[1733488200499,6.75231875,233.72,233.66,2.14]
[1733488202104,3.006,233.74,233.66,2.14]
[1733488202800,6.75231875,233.72,233.66,2.14]
[1733488203198,0.27729,233.85,233.69,6.75231875]
[1733488203400,6.75231875,233.79,233.71,6.75231875]
[1733488203598,6.75231875,233.79,233.72,2.14]
[1733488204204,4.6584,233.84,233.72,2.14]
[1733488204405,6.75231875,233.8,233.73,6.75231875]
[1733488206105,6.75231875,233.83,233.77,6.75231875]
[1733488206302,7.02960875,233.85,233.78,2.14]
[1733488206700,7.02960875,233.85,233.79,6.75231875]
[1733488206905,0.27729,233.85,233.79,6.75231875]
[1733488207807,0.27729,233.85,233.81,6.75231875]
[1733488212116,0.27729,233.85,233.83,6.75231875]
[1733488212415,0.27729,233.85,233.84,2.12]
[1733488212623,1e-08,233.85,233.84,2.12]
[1733488216719,1e-08,233.85,233.84,2.1]
[1733488219432,1e-08,233.85,233.83,19.55231875]
[1733488219927,1e-08,233.85,233.84,2.1]
[1733488221923,6.75231875,234.06,233.85,12.8]
[1733488222127,6.75231875,234.08,234.02,6.75231875]
[1733488222328,6.75231875,234.08,234.03,2.1]
[1733488224026,1.5019,234.15,234.04,2.1]
[1733488224329,6.75231875,234.04,233.97,6.75231875]
[1733488224628,6.75231875,234.04,233.98,2.1]
[1733488225028,6.75231875,234.04,233.98,1.69963]
[1733488225731,8.33621875,234.06,233.99,6.75231875]
[1733488226120,8.33621875,234.06,234.0,2.1]
[1733488226330,8.33621875,234.06,233.89,4.7587]
[1733488226331,6.75231875,234.04,233.89,4.7587]
[1733488226534,6.75231875,234.02,233.89,4.7587]
[1733488226726,6.75231875,234.02,233.95,6.75231875]
[1733488226922,6.75231875,234.02,233.96,2.1]
[1733488227325,3.2923,234.06,233.96,2.1]
[1733488227529,6.75231875,234.03,233.96,2.1]
[1733488227831,6.75231875,234.03,233.97,6.75231875]
[1733488228230,3.2923,234.06,234.01,6.75231875]
[1733488228533,3.2923,234.06,234.02,2.1]
[1733488229329,1.5839,234.06,234.02,2.1]
[1733488231734,1.5864,234.07,234.02,2.1]
[1733488232928,6.75231875,234.09,234.02,2.1]
[1733488233330,6.75231875,234.09,234.03,6.75231875]
[1733488235940,1.653,234.14,234.03,6.75231875]
[1733488236139,1.653,234.14,234.05,6.75231875]
[1733488236445,1.653,234.14,234.02,2.1]
[1733488236446,8.40531875,234.14,234.07,6.75231875]
[1733488236631,8.40531875,234.14,234.08,2.1]
[1733488237035,1.653,234.14,234.08,2.1]
[1733488239338,1.6821,234.15,234.08,2.1]
[1733488239637,1.6821,234.15,234.09,6.75231875]
[1733488239843,1.5897,234.24,234.11,6.75231875]
[1733488240036,6.75231875,234.18,234.11,6.75231875]
[1733488241633,6.75231875,234.18,234.12,2.1]
[1733488244442,1.5666,234.23,234.01,4.8352]
[1733488244443,6.75231875,234.16,234.01,4.8352]
[1733488244644,6.75231875,234.14,234.08,6.75231875]
[1733488244943,6.75231875,234.16,234.09,2.1]
[1733488245141,6.75231875,234.16,234.1,6.75231875]
[1733488247339,6.75231875,234.17,234.1,6.75231875]
[1733488248143,1.5666,234.23,234.01,3.232]
[1733488248144,6.75231875,234.13,234.01,3.232]
[1733488248444,6.75231875,234.11,234.04,6.75231875]
[1733488248833,3.6266,234.23,234.06,6.75231875]
[1733488249036,6.75231875,234.17,234.1,6.75231875]
[1733488249436,3.6266,234.23,234.12,6.75231875]
[1733488249639,6.75231875,234.19,234.13,2.06]
[1733488250342,1.5666,234.23,234.13,2.06]
[1733488250544,6.75231875,234.19,234.13,2.06]
[1733488252245,1.5666,234.23,234.13,2.06]
[1733488252442,6.75231875,234.17,234.13,2.06]
[1733488253651,1.5666,234.23,234.13,2.06]
[1733488253850,6.75231875,234.21,234.14,6.75231875]
[1733488258345,1.5666,234.23,234.14,6.75231875]
[1733488258545,1.5666,234.23,234.16,6.75231875]
[1733488258750,8.31891875,234.23,234.16,6.75231875]
[1733488259252,6.75231875,234.23,234.16,6.75231875]
[1733488260951,6.75231875,234.23,234.13,2.06]
[1733488261142,6.75231875,234.21,234.14,6.75231875]
[1733488261451,6.75231875,234.21,234.15,2.06]
[1733488261854,4.9294,234.29,234.06,1.6595]
[1733488261855,6.75231875,234.17,234.16,2.06]
[1733488262050,6.75231875,234.17,234.1,6.75231875]
[1733488262348,6.75231875,234.17,234.11,2.06]
[1733488263153,6.75231875,234.15,234.12,2.06]
[1733488263349,6.75231875,234.15,234.13,2.06]
[1733488263545,6.75231875,234.17,234.13,2.06]
[1733488266855,6.75231875,234.15,233.88,18.69922469]
[1733488267047,6.75231875,234.09,234.02,2.06]
[1733488268951,6.75231875,234.09,234.03,6.75231875]
[1733488269357,6.75231875,234.09,234.04,2.06]
[1733488270055,6.75231875,234.11,234.04,8.81231875]
[1733488270355,6.75231875,234.13,234.04,8.81231875]
[1733488270656,3.2392,234.17,234.08,6.75231875]
[1733488270954,18.44074837,234.16,234.1,6.75231875]
[1733488271153,4.9926,234.29,234.1,6.75231875]
[1733488271356,6.75231875,234.18,234.1,6.75231875]
[1733488271549,4.9926,234.29,234.09,2.06]
[1733488271550,6.75231875,234.16,234.09,2.06]
[1733488271851,6.75231875,234.14,234.09,2.06]
[1733488273653,6.75231875,234.14,234.08,2.06]
[1733488274247,2.06,234.22,234.08,8.81231875]
[1733488274450,6.75231875,234.17,234.08,8.81231875]
[1733488274647,18.45711291,234.16,234.08,8.81231875]
[1733488274851,6.75231875,234.17,234.08,8.81231875]
[1733488275256,6.75231875,234.17,234.1,6.75231875]
[1733488275761,2.04,234.23,234.1,6.75231875]
[1733488275958,6.75231875,234.18,234.1,6.75231875]
[1733488276552,2.04,234.24,234.08,8.81231875]
[1733488276757,6.75231875,234.16,234.08,8.81231875]
[1733488277157,2.04,234.24,234.08,2.06]
[1733488277158,6.75231875,234.14,234.08,2.06]
[1733488277457,6.75231875,234.12,234.08,2.06]
[1733488278250,2.04,234.18,234.08,2.06]
[1733488278251,6.75231875,234.1,234.08,2.06]
[1733488279063,6.75231875,234.1,234.04,2.04]
[1733488279262,6.75231875,234.08,234.03,2.04]
[1733488281061,4.9301,234.17,234.03,8.79231875]
[1733488281062,6.75231875,234.11,234.03,8.79231875]
[1733488281252,6.75231875,234.11,234.03,6.75231875]
[1733488281456,6.75231875,234.07,234.02,2.04]
[1733488281654,6.75231875,234.07,234.0,6.75231875]
[1733488281862,6.75231875,234.07,234.01,2.04]
[1733488284065,6.75231875,234.05,234.01,2.04]
[1733488284260,6.75231875,234.03,234.01,2.04]
[1733488284564,6.75231875,234.03,233.93,1.6187]
[1733488284757,6.75231875,234.01,233.94,2.04]
[1733488285463,6.75231875,233.99,233.91,8.46641875]
[1733488285659,6.75231875,233.97,233.94,2.04]
[1733488286059,1.6999,234.06,233.94,2.04]
[1733488286257,6.75231875,234.04,233.95,6.75231875]
[1733488286655,6.75231875,234.04,233.94,2.04]
[1733488286864,6.75231875,234.04,233.95,6.75231875]
[1733488288967,6.75231875,234.0,233.94,2.04]
[1733488289175,6.75231875,233.98,233.94,2.04]
[1733488290371,6.75231875,233.96,233.94,2.04]
[1733488291077,6.75231875,233.96,233.89,2.04]
[1733488291273,6.75231875,233.91,233.77,1.7118]
[1733488291474,6.75231875,233.91,233.82,6.75231875]
[1733488291773,6.75231875,233.91,233.83,2.04]
[1733488292776,6.75231875,233.89,233.83,2.04]
[1733488293785,6.75231875,233.87,233.83,2.04]
[1733488293979,10.53599182,233.86,233.79,2.04]
[1733488296780,10.53599182,233.89,233.79,2.04]
[1733488297179,10.53599182,233.92,233.79,2.04]
[1733488297678,2.04,233.95,233.8,10.53599182]
[1733488297978,10.53599182,233.95,233.83,10.53599182]
[1733488298182,10.53599182,233.98,233.84,2.04]
[1733488298480,10.53599182,233.98,233.86,10.53599182]
[1733488298980,10.53599182,233.98,233.87,4.8896]
[1733488300583,10.53599182,234.01,233.89,10.53599182]
[1733488300786,10.53599182,234.01,233.9,2.04]
[1733488301885,10.53599182,233.98,233.91,2.04]
[1733488302878,10.53599182,234.01,233.91,2.04]
[1733488303582,10.53599182,234.04,233.91,2.04]
[1733488304283,10.53599182,234.08,233.92,10.53599182]
[1733488306079,3.2605,234.11,233.9,4.23894273]
[1733488306080,10.53599182,234.05,233.9,4.23894273]
[1733488306275,10.53599182,234.05,233.93,2.04]
[1733488307280,10.53599182,234.02,233.93,2.04]
[1733488310485,10.53599182,233.99,233.93,2.04]
[1733488312186,2.04,234.07,233.93,2.04]
[1733488312187,10.53599182,234.02,233.93,2.04]
[1733488313086,10.53599182,233.99,233.93,2.04]
[1733488314084,10.53599182,233.96,233.89,2.04]
[1733488314487,10.53599182,233.96,233.88,2.04]
[1733488316289,10.53599182,233.99,233.88,2.04]
[1733488317384,10.53599182,233.96,233.87,3.2042]
[1733488317582,10.53599182,233.96,233.88,2.04]
[1733488317783,10.53599182,233.96,233.8,10.53599182]
[1733488317990,10.53599182,233.93,233.81,2.04]
[1733488320595,10.53599182,233.93,233.82,2.04]
[1733488322193,10.53599182,233.93,233.79,1.7166]
[1733488322394,10.53599182,233.9,233.83,2.04]
[1733488322890,10.53599182,233.87,233.79,2.04]
[1733488324389,10.53599182,233.93,233.79,6.3376134]
[1733488324697,10.53599182,233.93,233.79,2.04]
[1733488325197,10.53599182,233.93,233.79,6.24185439]
[1733488325895,10.53599182,233.93,233.79,2.04]
[1733488326499,10.53599182,233.9,233.79,2.04]
[1733488326692,15.53489182,234.0,233.79,2.04]
[1733488326693,10.53599182,233.87,233.79,2.04]
[1733488327997,10.53599182,233.9,233.79,2.04]
[1733488332100,10.53599182,233.93,233.79,2.04]
[1733488334003,10.53599182,233.99,233.84,10.53599182]
[1733488334303,3.2781,234.0,233.87,10.53599182]
[1733488334804,1.5753,234.0,233.87,10.53599182]
[1733488335419,1.5753,234.0,233.87,14.91237038]
[1733488335601,10.53599182,234.02,233.87,14.91237038]
[1733488336296,10.53599182,234.02,233.87,10.53599182]
[1733488336496,10.53599182,233.99,233.86,7.78062042]
[1733488338101,10.53599182,233.99,233.86,3.4145]
[1733488338601,10.53599182,233.96,233.86,3.4145]
[1733488338807,2.04,234.01,233.87,2.04]
[1733488338808,10.53599182,233.93,233.87,2.04]
[1733488339008,10.53599182,233.93,233.88,2.04]
[1733488341199,10.53599182,233.9,233.77,1.726]
[1733488341403,10.53599182,233.9,233.78,2.04]
[1733488341601,1.6832,233.99,233.77,1.726]
[1733488341602,10.53599182,233.87,233.77,1.726]
[1733488341809,10.53599182,233.87,233.78,2.04]
[1733488342006,10.53599182,233.9,233.78,2.04]
[1733488342307,10.53599182,233.93,233.78,2.04]
[1733488342904,10.53599182,233.93,233.8,10.53599182]
[1733488343106,10.53599182,233.93,233.8,14.81638345]
[1733488343404,10.53599182,233.93,233.8,10.53599182]
[1733488343900,10.53599182,233.93,233.78,2.04]
[1733488344804,10.53599182,233.9,233.78,2.04]
[1733488345505,10.53599182,233.9,233.76,3.2182]
[1733488345700,10.53599182,233.9,233.77,2.04]
[1733488346506,10.53599182,233.9,233.77,12.57599182]
[1733488348000,10.53599182,233.9,233.77,2.04]
[1733488350611,10.53599182,233.87,233.77,2.04]
[1733488350912,10.53599182,233.87,233.78,2.04]
[1733488351408,10.53599182,233.87,233.65,3.3846]
[1733488351409,10.53599182,233.84,233.74,2.04]
[1733488352611,10.53599182,233.84,233.68,10.53599182]
[1733488352612,10.53599182,233.81,233.66,4.31129326]
[1733488352903,10.53599182,233.78,233.67,2.04]
[1733488354508,1.6818,233.86,233.68,10.53599182]
[1733488354703,12.22949182,233.85,233.71,10.53599182]
[1733488355012,1.6935,233.85,233.74,10.53599182]
[1733488355219,3.3487,233.86,233.75,2.04]
[1733488355712,1.6818,233.86,233.77,10.53599182]
[1733488355909,10.53599182,233.92,233.77,10.53599182]
[1733488356113,12.26889182,233.92,233.8,10.53599182]
[1733488356307,12.26889182,233.92,233.81,2.04]
[1733488356308,1.7329,233.92,233.81,2.04]
[1733488357109,12.26889182,233.92,233.81,2.04]
[1733488360114,1.7329,233.92,233.81,2.04]
[1733488360316,10.53599182,233.95,233.81,2.04]
[1733488361109,10.53599182,233.95,233.8,10.53599182]
[1733488361110,10.53599182,233.92,233.82,2.04]
[1733488362908,3.7147,233.98,233.75,5.0388]
[1733488362909,10.53599182,233.89,233.75,5.0388]
[1733488363215,10.53599182,233.89,233.76,2.04]
[1733488364312,10.53599182,233.89,233.76,12.57599182]
[1733488370017,1.6747,233.98,233.82,10.53599182]
[1733488370215,28.96239595,233.97,233.83,2.04]
[1733488370410,10.53599182,233.97,233.83,2.04]
[1733488371715,10.53599182,233.94,233.83,2.04]
[1733488377721,10.53599182,233.97,233.83,2.04]
[1733488378619,10.53599182,233.97,233.84,10.53599182]
[1733488378811,3.2835,233.99,233.84,10.53599182]
[1733488379217,3.2835,233.99,233.85,3.176]
[1733488379617,3.2835,233.99,233.87,10.53599182]
[1733488379915,3.2835,233.99,233.88,2.04]
[1733488380417,3.2835,233.99,233.88,6.2816852]
[1733488380616,3.2835,233.99,233.89,2.04]
[1733488381820,3.2835,233.99,233.85,4.8915]
[1733488381821,10.53599182,233.97,233.85,4.8915]
[1733488382023,10.53599182,233.97,233.86,2.04]
[1733488384522,10.53599182,233.94,233.86,2.04]
[1733488384717,10.53599182,233.91,233.87,2.04]
[1733488384919,10.53599182,233.88,233.75,4.83]
[1733488385120,10.53599182,233.88,233.8,2.04]
[1733488385420,10.53599182,233.88,233.75,4.83]
[1733488385421,10.53599182,233.88,233.81,2.04]
[1733488385620,10.53599182,233.85,233.75,4.83]
[1733488385922,10.53599182,233.85,233.76,2.04]
[1733488386122,10.53599182,233.85,233.77,2.04]
[1733488386422,10.53599182,233.85,233.78,2.04]
[1733488386624,10.53599182,233.85,233.79,2.04]
[1733488387118,10.53599182,233.92,233.79,2.04]
[1733488387320,10.53599182,233.92,233.79,12.57599182]
[1733488388220,10.53599182,233.92,233.79,2.04]
[1733488391523,10.53599182,233.86,233.7,14.81699404]
[1733488391828,10.53599182,233.89,233.73,10.53599182]
[1733488392024,10.53599182,233.89,233.73,14.90101671]
[1733488392424,10.53599182,233.89,233.73,10.53599182]
[1733488392629,2.04,233.94,233.73,10.53599182]
[1733488392630,10.53599182,233.86,233.73,10.53599182]
[1733488393123,10.53599182,233.86,233.74,2.04]
[1733488394035,10.53599182,233.86,233.75,2.04]
[1733488395031,10.53599182,233.83,233.75,2.04]
[1733488395332,10.53599182,233.83,233.71,3.2293]
[1733488395528,10.53599182,233.83,233.72,2.02]
[1733488395923,10.53599182,233.83,233.73,2.04]
[1733488396233,5.0482,233.88,233.73,2.04]
[1733488396234,10.53599182,233.87,233.73,2.04]
[1733488398130,10.53599182,233.84,233.73,2.04]
[1733488399931,10.53599182,233.87,233.73,2.04]
[1733488400436,10.53599182,233.87,233.74,10.53599182]
[1733488400937,10.53599182,233.87,233.74,14.87795291]
[1733488401234,10.53599182,233.87,233.75,2.04]
[1733488401425,10.53599182,233.87,233.75,12.57599182]
[1733488402833,10.53599182,233.9,233.78,10.53599182]
[1733488403037,10.53599182,233.93,233.78,10.53599182]
[1733488404032,10.53599182,233.93,233.81,10.53599182]
[1733488404236,10.53599182,233.96,233.82,2.04]
[1733488404544,10.53599182,233.96,233.84,10.53599182]
[1733488404740,13.71959182,233.99,233.84,10.53599182]
[1733488405043,13.71959182,233.99,233.85,3.3877]
[1733488405240,13.71959182,233.99,233.85,7.72535198]
[1733488406638,10.53599182,234.05,233.9,10.53599182]
[1733488406837,10.53599182,234.05,233.91,2.04]
[1733488407540,10.53599182,234.05,233.92,4.17057268]
[1733488408037,10.53599182,234.02,233.91,2.04]
[1733488410139,10.53599182,234.02,233.86,1.629]
[1733488410140,10.53599182,233.99,233.86,1.629]
[1733488410340,10.53599182,233.96,233.87,2.02]
[1733488412550,10.53599182,233.96,233.88,2.02]
[1733488417549,10.53599182,233.93,233.8,1.6478]
[1733488417753,10.53599182,233.93,233.81,2.02]
[1733488417940,10.53599182,233.9,233.79,44.48]
[1733488418145,10.53599182,233.9,233.82,2.02]
[1733488421942,10.53599182,233.87,233.74,3.3277]
[1733488422149,10.53599182,233.87,233.75,2.02]
[1733488425345,10.53599182,233.84,233.69,10.53599182]
[1733488425553,10.53599182,233.84,233.7,2.02]
[1733488431846,1.5774,233.83,233.67,10.53599182]
[1733488432154,1.5774,233.83,233.68,2.02]
[1733488432155,10.53599182,233.77,233.68,2.02]
[1733488434850,10.53599182,233.8,233.68,2.02]
[1733488442153,10.53599182,233.77,233.68,2.02]
[1733488443961,10.53599182,233.8,233.68,2.02]
[1733488444166,1.6816,233.82,233.68,2.02]
[1733488444663,1.6816,233.82,233.69,2.02]
[1733488445961,10.53599182,233.8,233.69,2.02]
[1733488447861,10.53599182,233.8,233.65,46.0336]
[1733488448068,1.6816,233.82,233.66,2.02]
[1733488448271,10.53599182,233.8,233.66,12.55599182]
[1733488453172,10.53599182,233.77,233.65,47.7295]
[1733488453377,10.53599182,233.74,233.64,2.02]
[1733488453577,10.53599182,233.71,233.65,2.02]
[1733488453775,10.53599182,233.71,233.63,2.02]
[1733488454369,10.53599182,233.71,233.64,2.02]
[1733488454572,1.7292,233.76,233.64,2.02]
[1733488454780,12.82,233.99,233.66,10.53599182]
[1733488454781,10.53599182,233.8,233.66,10.53599182]
[1733488455783,10.53599182,233.77,233.63,10.53599182]
[1733488455980,10.53599182,233.77,233.64,2.02]
[1733488456472,10.53599182,233.74,233.64,2.02]
[1733488456877,10.53599182,233.79,233.64,2.02]
[1733488457276,10.53599182,233.79,233.64,3.7394]
[1733488457481,10.53599182,233.79,233.64,7.93699724]
[1733488464589,1.6647,233.81,233.64,7.93699724]
[1733488464787,1.5903,233.82,233.67,10.53599182]
[1733488464986,1.5903,233.82,233.68,1.6155]
[1733488465187,10.53599182,233.81,233.69,2.02]
[1733488465890,10.53599182,233.78,233.7,2.02]
[1733488466089,10.53599182,233.75,233.7,2.02]
[1733488466882,1.6725,233.81,233.7,2.02]
[1733488467086,1.5903,233.82,233.7,2.02]
[1733488467286,10.53599182,233.84,233.7,2.02]
[1733488467492,12.26519182,233.87,233.7,12.55599182]
[1733488467683,10.71570959,233.86,233.71,3.156]
[1733488467888,10.53599182,233.87,233.73,10.53599182]
[1733488468088,10.53599182,233.93,233.79,10.53599182]
[1733488468287,10.53599182,233.93,233.8,2.02]
[1733488468494,10.53599182,233.96,233.8,2.02]
[1733488468685,10.53599182,233.96,233.81,1.6649]
[1733488468988,10.53599182,233.96,233.82,10.53599182]
[1733488469992,10.53599182,233.96,233.83,2.02]
[1733488470286,10.53599182,233.93,233.83,2.02]
[1733488470988,10.53599182,233.93,233.83,6.36035246]
[1733488471382,5.0029,233.98,233.83,6.36035246]
[1733488471591,10.53599182,233.96,233.83,6.36035246]
[1733488472092,295.63424099,234.07,233.85,10.53599182]
[1733488472292,10.53599182,234.01,233.85,10.53599182]
[1733488474290,10.53599182,234.01,233.88,10.53599182]
[1733488474594,10.53599182,234.04,233.91,10.53599182]
[1733488474796,10.53599182,234.08,233.94,10.53599182]
[1733488477397,10.53599182,234.08,233.94,12.23869182]
[1733488478097,1.5675,234.11,233.97,10.53599182]
[1733488478298,3.3269,234.12,234.0,10.53599182]
[1733488478595,10.53599182,234.17,234.03,10.53599182]
[1733488478794,10.53599182,234.17,234.04,2.02]
[1733488479898,10.53599182,234.17,234.05,4.32378049]
[1733488481199,10.53599182,234.17,234.04,2.02]
[1733488481701,10.53599182,234.17,234.04,6.32308979]
[1733488482292,293.61424099,234.34,234.06,10.53599182]
[1733488482497,10.53599182,234.26,234.09,10.53599182]
[1733488482696,10.53599182,234.26,234.1,2.02]
[1733488483396,10.53599182,234.26,234.1,6.33319925]
[1733488484101,10.53599182,234.26,234.12,10.53599182]
[1733488486704,4.8937,234.31,234.09,10.53599182]
[1733488486907,10.53599182,234.2,234.1,2.04]
[1733488487107,10.53599182,234.2,234.11,2.04]
[1733488487298,10.53599182,234.2,234.12,2.04]
[1733488487504,10.53599182,234.2,234.13,2.04]
[1733488487704,10.53599182,234.17,234.13,0.89649552]
[1733488489407,10.53599182,234.17,234.02,10.53599182]
[1733488489608,10.53599182,234.17,234.03,2.04]
[1733488490307,10.53599182,234.2,234.05,10.53599182]
[1733488491006,10.53599182,234.2,234.06,4.3662852]
[1733488491405,10.53599182,234.2,234.05,10.53599182]
[1733488491907,10.53599182,234.2,234.05,14.91081743]
[1733488492405,10.53599182,234.25,234.08,10.53599182]
[1733488492612,10.53599182,234.25,234.09,7.0046]
[1733488492908,10.53599182,234.25,234.11,10.53599182]
[1733488493111,10.53599182,234.25,234.11,14.81821483]
[1733488495106,10.53599182,234.25,234.11,10.53599182]
[1733488495305,4.8937,234.31,234.12,2.04]
[1733488495306,10.53599182,234.22,234.12,2.04]
[1733488495710,10.53599182,234.22,234.09,4.9646]
[1733488495711,10.53599182,234.22,234.09,1.6496]
[1733488495902,10.53599182,234.19,234.1,2.04]
[1733488496104,10.53599182,234.19,234.11,2.04]
[1733488496613,10.53599182,234.16,234.02,10.53599182]
[1733488496809,10.53599182,234.16,234.03,2.04]
[1733488497015,10.53599182,234.13,233.99,10.53599182]
[1733488497207,10.53599182,234.13,234.0,2.04]
[1733488499314,10.53599182,234.16,234.02,10.53599182]
[1733488500113,16.81383957,234.19,234.0,18.85383957]
[1733488502719,16.81383957,234.19,234.01,1.5392]
[1733488503125,16.81383957,234.19,234.02,2.04]
[1733488503727,2.04,234.18,234.02,2.04]
[1733488504329,1.6076,234.2,234.02,2.04]
[1733488505231,1.6076,234.2,234.04,16.81383957]
[1733488505432,3.2807,234.21,234.08,16.81383957]
[1733488505628,3.2807,234.21,234.09,2.04]
[1733488512039,2.04,234.26,234.1,4.19500752]